DepartmentFamily,Entity,Date,ExpenseType,ExpenseArea,Supplier,PaymentNumber,InvoiceDistributionAmount,InvoiceDescription,SupplierPostCode,ExpenditureType
FOOD STANDARDS AGENCY - Westminster,FOOD STANDARDS AGENCY - Westminster,2018-04-03,EXP - AMORTISATION - INTANGIBLE ASSETS,IT STRATEGY & DEVELOPMENT,4 NET,1011705558,120923.51,New VC Solution,M32 0TR,CAPITAL
FOOD STANDARDS AGENCY - Westminster,FOOD STANDARDS AGENCY - Westminster,2018-04-09,EXP - PURCHASE OF GOODS/SERVICES - OTHER - PROGRAMME EXPENDITURE,ANALYSIS & RESEARCH BRANCH,NATIONAL CENTRE FOR SOCIAL RESEARCH,1011705659,92600,W5 questionnaire piloted and finalised Reporting (Wave 5),EC1V 0AX,PROGRAMME
FOOD STANDARDS AGENCY - Westminster,FOOD STANDARDS AGENCY - Westminster,2018-04-13,EXP - PURCHASE OF GOODS/SERVICES - OTHER - PROGRAMME EXPENDITURE,"RADIOLOGICAL, NOVEL FOOD & PROCESSES",C E F A S,2012700419,71413.35,FS102066 - Radiological analysis of food,NR33 0HT,PROGRAMME
FOOD STANDARDS AGENCY - Westminster,FOOD STANDARDS AGENCY - Westminster,2018-04-04,EXP - PURCHASE OF GOODS/SERVICES - OTHER - PROGRAMME EXPENDITURE,"RADIOLOGICAL, NOVEL FOOD & PROCESSES",C E F A S,2012700404,71413.15,FS102066 - Radiological analysis of food,NR33 0HT,PROGRAMME
FOOD STANDARDS AGENCY - Westminster,FOOD STANDARDS AGENCY - Westminster,2018-04-09,EXP - PURCHASE OF GOODS/SERVICES - OTHER - PROGRAMME EXPENDITURE,CHIEF SCIENTIST  ,COMMUNITY RESEARCH LTD,1011705639,66737.5,FS303018 - Qualitative research: March 2018 invoice for fieldwork,LE9 4WB,PROGRAMME
FOOD STANDARDS AGENCY - Westminster,FOOD STANDARDS AGENCY - Westminster,2018-04-18,EXP - PURCHASE OF GOODS/SERVICES - OTHER - PROGRAMME EXPENDITURE,CHIEF SCIENTIST  ,QUADRAM INSTITUTE BIOSCIENCE,1011705784,62500,"FS101185 - This is a five-year joint research fellowship between the FSA and Quadram Institutes Biosciences (QIB), to develop a programme of work on bacterial foodborne pathogens and food safety.",NR4 7UA,PROGRAMME
FOOD STANDARDS AGENCY - Westminster,FOOD STANDARDS AGENCY - Westminster,2018-04-03,EXP - PURCHASE OF GOODS/SERVICES - OTHER - PROGRAMME EXPENDITURE,FOOD HYGIENE POLICY,C E F A S,2012700403,59822,FS101165: UK contribution to an EU survey of Norovirus in oysters at production areas and dispatch centres. Project Start Date:1 Nov 2016Project Completion Date: 31 Dec 2018. ,NR33 0HT,PROGRAMME
FOOD STANDARDS AGENCY - Westminster,FOOD STANDARDS AGENCY - Westminster,2018-04-13,EXP - PURCHASE OF GOODS/SERVICES - IT MANAGEMENT AND CHANGE - IT DEVELOPMENT,IT STRATEGY & DEVELOPMENT,RAINMAKER SOLUTIONS LTD,1011705740,57050,Call-off: Programme Delivery Support Feb 18 ? Mar 18,MK18 1HD,ADMIN
FOOD STANDARDS AGENCY - Westminster,FOOD STANDARDS AGENCY - Westminster,2018-04-25,EXP - PURCHASE OF GOODS/SERVICES - OTHER - PROGRAMME EXPENDITURE,MICRO FOOD SAFETY BRANCH,ANIMAL AND PLANT HEALTH AGENCY,2012700427,56175.23,"FS102109 ?MOU Btw The FSA and APHA. Year 3 of the EU Harmonised Survey on AMR, Beef & Pork ",KT15 3NB,PROGRAMME
FOOD STANDARDS AGENCY - Westminster,FOOD STANDARDS AGENCY - Westminster,2018-04-10,EXP - PURCHASE OF GOODS/SERVICES - TELECOMS - TELEPHONE,IT SERVICE DELIVERY,4 NET,1011705673,55829.01,4net Proffessional Services for Antenna,M32 0TR,ADMIN
FOOD STANDARDS AGENCY - Westminster,FOOD STANDARDS AGENCY - Westminster,2018-04-09,EXP - PURCHASE OF GOODS/SERVICES - OTHER - PROGRAMME EXPENDITURE,REGULATORY DELIVERY,ALLIED PUBLICITY SERVICES MANCHESTER LTD T/A APS GROUP,1011705643,55172.62,FHRS Sticker Re-print,SK3 0ZP,PROGRAMME
FOOD STANDARDS AGENCY - Westminster,FOOD STANDARDS AGENCY - Westminster,2018-04-17,EXP - PURCHASE OF GOODS/SERVICES - OTHER - PROGRAMME EXPENDITURE,FOOD INCIDENTS AND RESILIENCE PROG,ANIMAL HEALTH AND VETERINARY LABORATORIES AGENCY,2012700422,50122,"FS111012 - 1 April 2017 ? 31 March 2018 On-farm food Safety (Provision of services in relation to Chemical Food Safety, Surveillance and Advice).",KT15 3NB,PROGRAMME
FOOD STANDARDS AGENCY - Westminster,FOOD STANDARDS AGENCY - Westminster,2018-04-23,EXP - PURCHASE OF GOODS/SERVICES - SUPPORT,OPERATIONS ASSURANCE DIVISION (PROGRAMME),IBM UNITED KINGDOM LTD,1011705836,50000,IBM Blockchain Pilot,PO6 3AE,PROGRAMME
FOOD STANDARDS AGENCY - Westminster,FOOD STANDARDS AGENCY - Westminster,2018-04-05,EXP - PURCHASE OF GOODS/SERVICES - SUPPORT,REGULATING OUR FUTURE,EPIMORPHICS LTD,1011705609,49963.83,ROF - Extension of services to Strand 6 - User Epics and Data Ecosystem Modelling,BS20 6PT,ADMIN
FOOD STANDARDS AGENCY - Westminster,FOOD STANDARDS AGENCY - Westminster,2018-04-03,EXP - PURCHASE OF GOODS/SERVICES - OTHER - PROGRAMME EXPENDITURE,FOOD INCIDENTS AND RESILIENCE PROG,KANTAR UK,1011705577,47005,3a & 3b) Public f2f citizen forum work shops & Online qualitative survey,SE1 2QY,PROGRAMME
FOOD STANDARDS AGENCY - Westminster,FOOD STANDARDS AGENCY - Westminster,2018-04-11,EXP - AMORTISATION - INTANGIBLE ASSETS,OWOW,FLEXIFORM BUSINESS FURNITURE LTD,1011705707,45063.9,"Order of lockers, furniture from flexi form",EC1V 3RS,CAPITAL
FOOD STANDARDS AGENCY - Westminster,FOOD STANDARDS AGENCY - Westminster,2018-04-09,EXP - PURCHASE OF GOODS/SERVICES - IT MANAGEMENT AND CHANGE - IT DEVELOPMENT,IT STRATEGY & DEVELOPMENT,COREAZURE LTD,1011705640,45000,WP7 - Branch Office Optimisation,EC1A 4EN,ADMIN
FOOD STANDARDS AGENCY - Westminster,FOOD STANDARDS AGENCY - Westminster,2018-04-19,EXP - PURCHASE OF GOODS/SERVICES - IT MANAGEMENT AND CHANGE - IT DEVELOPMENT,IT STRATEGY & DEVELOPMENT,RAINMAKER SOLUTIONS LTD,1011705820,44010.2,Call-off: Programme Delivery Support Feb 18 ? Mar 18,MK18 1HD,ADMIN
FOOD STANDARDS AGENCY - Westminster,FOOD STANDARDS AGENCY - Westminster,2018-04-05,EXP - PURCHASE OF GOODS/SERVICES - OTHER ICT COSTS - COMPUTER HARDWARE,IT SERVICE DELIVERY,COREAZURE LTD,1011705605,42534.24,"Datacentre Discovery and Design - Variable - Azure Basket of Goods - VMs, OMS & Storage (WP5)",EC1A 4EN,ADMIN
FOOD STANDARDS AGENCY - Westminster,FOOD STANDARDS AGENCY - Westminster,2018-04-09,Exp - Purchase Of Goods/Services - Consultancy,REGULATING OUR FUTURE,IBM UNITED KINGDOM LTD,1011705656,40970,"ROF _ Food business registration, segmentation and single view (Alpha Stage)",PO6 3AE,ADMIN
FOOD STANDARDS AGENCY - Westminster,FOOD STANDARDS AGENCY - Westminster,2018-04-09,EXP - PURCHASE OF GOODS/SERVICES - SUPPORT,REGULATING OUR FUTURE,IBM UNITED KINGDOM LTD,1011705656,37260,ROF - Work Package No. 9 - Alpha Extension.,PO6 3AE,ADMIN
FOOD STANDARDS AGENCY - Westminster,FOOD STANDARDS AGENCY - Westminster,2018-04-10,EXP - PURCHASE OF GOODS/SERVICES - IT MANAGEMENT AND CHANGE - IT DEVELOPMENT,IT STRATEGY & DEVELOPMENT,COREAZURE LTD,1011705676,34000,Citrix Migration to Azure,EC1A 4EN,ADMIN
FOOD STANDARDS AGENCY - Westminster,FOOD STANDARDS AGENCY - Westminster,2018-04-09,EXP - PURCHASE OF GOODS/SERVICES - IT MANAGEMENT AND CHANGE - IT DEVELOPMENT,IT STRATEGY & DEVELOPMENT,COREAZURE LTD,1011705640,33000,Branch Office CCN ? Data migration to Azure,EC1A 4EN,ADMIN
FOOD STANDARDS AGENCY - Westminster,FOOD STANDARDS AGENCY - Westminster,2018-04-17,EXP - PURCHASE OF GOODS/SERVICES - MARKETING & MEDIA,COMMS,N L A MEDIA ACCESS LIMITED,1011705773,31819.3,NLA - newspaper licensing renewal for March 2018 to Feb 2019,TN1 1NL,ADMIN
FOOD STANDARDS AGENCY - Westminster,FOOD STANDARDS AGENCY - Westminster,2018-04-13,EXP - PURCHASE OF GOODS/SERV - SUPPORT - IT SUPPORT SERVICES,IT STRATEGY & DEVELOPMENT,COREAZURE LTD,1011705737,31655,Datacentre Discovery and Design - Milestone 4b: Fixed Price Velostrata Software (WP2b),EC1A 4EN,ADMIN
FOOD STANDARDS AGENCY - Westminster,FOOD STANDARDS AGENCY - Westminster,2018-04-05,EXP - PURCHASE OF GOODS/SERVICES - OTHER ICT COSTS - COMPUTER HARDWARE,IT SERVICE DELIVERY,COREAZURE LTD,1011705605,31655,Datacentre Discovery and Design - Fixed Price - Azure Managed Service (WP4),EC1A 4EN,ADMIN
FOOD STANDARDS AGENCY - Westminster,FOOD STANDARDS AGENCY - Westminster,2018-04-05,EXP - PURCHASE OF GOODS/SERVICES - OTHER ICT COSTS - COMPUTER HARDWARE,IT SERVICE DELIVERY,COREAZURE LTD,1011705605,31655,Datacentre Discovery and Design - Fixed Price - Azure Managed Service (WP4),EC1A 4EN,ADMIN
FOOD STANDARDS AGENCY - Westminster,FOOD STANDARDS AGENCY - Westminster,2018-04-09,EXP - PURCHASE OF GOODS/SERVICES - OTHER - PROGRAMME EXPENDITURE,SCIENTIFIC METHODS AND LABORATORY POLICY,C E F A S,2012700412,31250,EU Reference Laboratory for Bacteriological and Viral Contamination of Molluscs (BVCM)Description for 1 line Bulk Order on PO:EURL for Contamination of Bivalve Molluscs (March 2017 ? December 2018),NR33 0HT,PROGRAMME
FOOD STANDARDS AGENCY - Westminster,FOOD STANDARDS AGENCY - Westminster,2018-04-10,EXP - AMORTISATION - INTANGIBLE ASSETS,IT STRATEGY & DEVELOPMENT,COMPUTACENTER UK LTD,1011705680,30500,Lenovo Thinkvision Monitors,AL10 9TW,CAPITAL
FOOD STANDARDS AGENCY - Westminster,FOOD STANDARDS AGENCY - Westminster,2018-04-03,EXP - PURCHASE OF GOODS/SERVICES - OTHER - PROGRAMME EXPENDITURE,SCIENTIFIC METHODS AND LABORATORY POLICY,FERA SCIENCE LIMITED,1011705571,30280.9,National Reference Laboratory for Contaminants for core costs and ad hoc costs in : 2017 - 2018,YO41 1LZ,PROGRAMME
FOOD STANDARDS AGENCY - Westminster,FOOD STANDARDS AGENCY - Westminster,2018-04-04,EXP - PURCHASE OF GOODS/SERVICES - SUPPORT,IT SERVICE DELIVERY,DAISY COMMUNICATIONS LTD,1011705592,28118.79,Wisdom Support Contract 12 months,BB9 5SR,ADMIN
FOOD STANDARDS AGENCY - Westminster,FOOD STANDARDS AGENCY - Westminster,2018-04-04,EXP - PURCHASE OF GOODS/SERVICES - OTHER PROFESSIONAL SERVICES,SURVEILLANCE,RAND EUROPE COMMUNITY INTEREST CO,1011705581,25000,FS101079-Strategic Surveillance ? Process design and implementation ,CB4 1YG,ADMIN
FOOD STANDARDS AGENCY - Westminster,FOOD STANDARDS AGENCY - Westminster,2018-04-06,EXP - PURCHASE OF GOODS/SERVICES - OTHER - PROGRAMME EXPENDITURE,ANALYSIS & RESEARCH BRANCH,COMMUNITY RESEARCH LTD,1011705627,24970,Development of business tracker,LE9 4WB,PROGRAMME
FOOD STANDARDS AGENCY - Westminster,FOOD STANDARDS AGENCY - Westminster,2018-04-11,Exp - Purchase Of Goods/Services - Consultancy,FOOD CRIME UNIT ADMIN,PA CONSULTING SERVICES LTD,1011705705,24630,HM Treasury business case for Phase 2 of the NFCU build ,SG8 6DP,ADMIN
FOOD STANDARDS AGENCY - Westminster,FOOD STANDARDS AGENCY - Westminster,2018-04-11,Exp - Purchase Of Goods/Services - Consultancy,FOOD CRIME UNIT ADMIN,PA CONSULTING SERVICES LTD,1011705705,24630,HM Treasury business case for Phase 2 of the NFCU build ,SG8 6DP,ADMIN
FOOD STANDARDS AGENCY - Westminster,FOOD STANDARDS AGENCY - Westminster,2018-04-11,Exp - Purchase Of Goods/Services - Consultancy,FOOD CRIME UNIT ADMIN,PA CONSULTING SERVICES LTD,1011705705,24630,HM Treasury business case for Phase 2 of the NFCU build,SG8 6DP,ADMIN
FOOD STANDARDS AGENCY - Westminster,FOOD STANDARDS AGENCY - Westminster,2018-04-09,EXP - PURCHASE OF GOODS/SERV - SUPPORT - IT SUPPORT SERVICES,IT SERVICE DELIVERY,LITTLE FISH UK LTD,1011705642,24264,Monthly Service Charge Sept 17 - Mar 18,NG1 1LS,ADMIN
FOOD STANDARDS AGENCY - Westminster,FOOD STANDARDS AGENCY - Westminster,2018-04-16,EXP - PURCHASE OF GOODS/SERV - SUPPORT - IT SUPPORT SERVICES,IT SERVICE DELIVERY,LITTLE FISH UK LTD,1011705752,24264,Monthly Service Charge Sept 17 - Mar 18,NG1 1LS,ADMIN
FOOD STANDARDS AGENCY - Westminster,FOOD STANDARDS AGENCY - Westminster,2018-04-03,EXP - AMORTISATION - INTANGIBLE ASSETS,IT STRATEGY & DEVELOPMENT,4 NET,1011705558,24184.7,NEW VC,M32 0TR,CAPITAL
FOOD STANDARDS AGENCY - Westminster,FOOD STANDARDS AGENCY - Westminster,2018-04-05,Exp - Purchase Of Goods/Services - Consultancy,REGULATING OUR FUTURE,IBM UNITED KINGDOM LTD,1011705619,23753,"ROF _ Food business registration, segmentation and single view (Alpha Stage)",PO6 3AE,ADMIN
FOOD STANDARDS AGENCY - Westminster,FOOD STANDARDS AGENCY - Westminster,2018-04-05,EXP - PURCHASE OF GOODS/SERVICES- OTHER -MEAT INSPECTION EQUIPMENT / CONSUMABLES,OPERATIONAL DELIVERY,ARCO UK LTD,1011705624,23719.45,BULK PO - ARCO - PPE Annual Spend for Field Operations - 2017/18,HU1 2SJ,ADMIN
FOOD STANDARDS AGENCY - Westminster,FOOD STANDARDS AGENCY - Westminster,2018-04-05,EXP - PURCHASE OF GOODS/SERV - SUPPORT - IT SUPPORT SERVICES,IT STRATEGY & DEVELOPMENT,COREAZURE LTD,1011705605,23022.64,Datacentre Discovery and Design - Milestone 4a: Fixed Price Migration (WP2b),EC1A 4EN,ADMIN
FOOD STANDARDS AGENCY - Westminster,FOOD STANDARDS AGENCY - Westminster,2018-04-06,EXP - PURCHASE OF GOODS/SERVICES - OTHER - PROGRAMME EXPENDITURE,ANALYSIS & RESEARCH BRANCH,BEHAVIOURAL INSIGHTS LTD,1011705625,22000,FS301037-Consultancy services to the FSA on a project using behavioural insights techniques to increase payment compliance in meat plant invoicing.(Alessandro Desimone),SW1H 9NP,PROGRAMME
FOOD STANDARDS AGENCY - Westminster,FOOD STANDARDS AGENCY - Westminster,2018-04-13,EXP - PURCHASE OF GOODS/SERV - SUPPORT - IT SUPPORT SERVICES,IT SERVICE DELIVERY,RAINMAKER SOLUTIONS LTD,1011705740,21850,IT Services Support Cover,MK18 1HD,ADMIN
FOOD STANDARDS AGENCY - Westminster,FOOD STANDARDS AGENCY - Westminster,2018-04-04,EXP - PURCHASE OF GOODS/SERVICES - OTHER - PROGRAMME EXPENDITURE,REGULATORY DELIVERY,C E F A S,2012700404,21076,Shellfish Classification,NR33 0HT,PROGRAMME
FOOD STANDARDS AGENCY - Westminster,FOOD STANDARDS AGENCY - Westminster,2018-04-09,EXP - PURCHASE OF GOODS/SERV - SUPPORT - IT SUPPORT SERVICES,IT SERVICE DELIVERY,LITTLE FISH UK LTD,1011705642,18759,Monthly Laptop Service Charge Sept 17 - Mar 18,NG1 1LS,ADMIN
FOOD STANDARDS AGENCY - Westminster,FOOD STANDARDS AGENCY - Westminster,2018-04-05,EXP - PURCHASE OF GOODS/SERVICES - OTHER - PROGRAMME EXPENDITURE,REGULATORY DELIVERY,C E F A S,2012700405,14199.38,Shellfish Biotoxin Flesh analysis - DSP,NR33 0HT,PROGRAMME
FOOD STANDARDS AGENCY - Westminster,FOOD STANDARDS AGENCY - Westminster,2018-04-05,EXP - PURCHASE OF GOODS/SERVICES - OTHER - PROGRAMME EXPENDITURE,REGULATORY DELIVERY,C E F A S,2012700405,12540.2,Shellfish Biotoxin Flesh analysis - PSP,NR33 0HT,PROGRAMME
FOOD STANDARDS AGENCY - Westminster,FOOD STANDARDS AGENCY - Westminster,2018-04-13,EXP - PURCHASE OF GOODS/SERVICES - IT MANAGEMENT AND CHANGE - IT DEVELOPMENT,IT STRATEGY & DEVELOPMENT,RAINMAKER SOLUTIONS LTD,1011705740,11410,WORKED ,MK18 1HD,ADMIN
FOOD STANDARDS AGENCY - Westminster,FOOD STANDARDS AGENCY - Westminster,2018-04-10,EXP - PURCHASE OF GOODS/SERVICES - TELECOMS - TELEPHONE,IT SERVICE DELIVERY,4 NET,1011705673,11165.81,"PO NO 11770002624,",M32 0TR,ADMIN
FOOD STANDARDS AGENCY - Westminster,FOOD STANDARDS AGENCY - Westminster,2018-04-09,EXP - PURCHASE OF GOODS/SERVICES - OTHER - PROGRAMME EXPENDITURE,REGULATORY DELIVERY,ALLIED PUBLICITY SERVICES MANCHESTER LTD T/A APS GROUP,1011705643,11034.53,FHRS,SK3 0ZP,PROGRAMME
FOOD STANDARDS AGENCY - Westminster,FOOD STANDARDS AGENCY - Westminster,2018-04-05,EXP - PURCHASE OF GOODS/SERVICES - OTHER - PROGRAMME EXPENDITURE,REGULATORY DELIVERY,C E F A S,2012700405,10496.04,Phytoplankton analysis 2017/18,NR33 0HT,PROGRAMME
FOOD STANDARDS AGENCY - Westminster,FOOD STANDARDS AGENCY - Westminster,2018-04-05,EXP - PURCHASE OF GOODS/SERVICES - OTHER - PROGRAMME EXPENDITURE,REGULATORY DELIVERY,C E F A S,2012700405,9778.42,Shellfish Biotoxin Flesh analysis - ASP,NR33 0HT,PROGRAMME
FOOD STANDARDS AGENCY - Westminster,FOOD STANDARDS AGENCY - Westminster,2018-04-11,EXP - AMORTISATION - INTANGIBLE ASSETS,OWOW,FLEXIFORM BUSINESS FURNITURE LTD,1011705707,9012.78,SPB13188/1,EC1V 3RS,CAPITAL
FOOD STANDARDS AGENCY - Westminster,FOOD STANDARDS AGENCY - Westminster,2018-04-19,EXP - PURCHASE OF GOODS/SERVICES - IT MANAGEMENT AND CHANGE - IT DEVELOPMENT,IT STRATEGY & DEVELOPMENT,RAINMAKER SOLUTIONS LTD,1011705820,8802.04,WORK RELATING TO IT MANAGEMENT COSTS,MK18 1HD,ADMIN
FOOD STANDARDS AGENCY - Westminster,FOOD STANDARDS AGENCY - Westminster,2018-04-09,Exp - Purchase Of Goods/Services - Consultancy,REGULATING OUR FUTURE,IBM UNITED KINGDOM LTD,1011705656,8194,PERIOD: FROM 20/11/2017 TO 24/11/2017,PO6 3AE,ADMIN
FOOD STANDARDS AGENCY - Westminster,FOOD STANDARDS AGENCY - Westminster,2018-04-09,EXP - PURCHASE OF GOODS/SERVICES - SUPPORT,REGULATING OUR FUTURE,IBM UNITED KINGDOM LTD,1011705656,7452,PERIOD FROM 05/03/2019 TO 23/03/2018,PO6 3AE,ADMIN
FOOD STANDARDS AGENCY - Westminster,FOOD STANDARDS AGENCY - Westminster,2018-04-10,EXP - AMORTISATION - INTANGIBLE ASSETS,IT STRATEGY & DEVELOPMENT,COMPUTACENTER UK LTD,1011705680,6100,LENOVO,AL10 9TW,CAPITAL
FOOD STANDARDS AGENCY - Westminster,FOOD STANDARDS AGENCY - Westminster,2018-04-06,EXP - PURCHASE OF GOODS/SERVICES - OTHER - PROGRAMME EXPENDITURE,ANALYSIS & RESEARCH BRANCH,COMMUNITY RESEARCH LTD,1011705627,4994,SME FOOD BUSINESS,LE9 4WB,PROGRAMME
FOOD STANDARDS AGENCY - Westminster,FOOD STANDARDS AGENCY - Westminster,2018-04-11,Exp - Purchase Of Goods/Services - Consultancy,FOOD CRIME UNIT ADMIN,PA CONSULTING SERVICES LTD,1011705705,4926,NFFCA BUSINESS CASE,SG8 6DP,ADMIN
FOOD STANDARDS AGENCY - Westminster,FOOD STANDARDS AGENCY - Westminster,2018-04-11,Exp - Purchase Of Goods/Services - Consultancy,FOOD CRIME UNIT ADMIN,PA CONSULTING SERVICES LTD,1011705705,4926,NFFCA BUSINESS CASE,SG8 6DP,ADMIN
FOOD STANDARDS AGENCY - Westminster,FOOD STANDARDS AGENCY - Westminster,2018-04-11,Exp - Purchase Of Goods/Services - Consultancy,FOOD CRIME UNIT ADMIN,PA CONSULTING SERVICES LTD,1011705705,4926,NFFCA BUSINESS CASE,SG8 6DP,ADMIN
FOOD STANDARDS AGENCY - Westminster,FOOD STANDARDS AGENCY - Westminster,2018-04-05,Exp - Purchase Of Goods/Services - Consultancy,REGULATING OUR FUTURE,IBM UNITED KINGDOM LTD,1011705619,4750.6,PERIOD: PROM 26/02/2018 TO 09/03/2018,PO6 3AE,ADMIN
FOOD STANDARDS AGENCY - Westminster,FOOD STANDARDS AGENCY - Westminster,2018-04-05,EXP - PURCHASE OF GOODS/SERVICES- OTHER -MEAT INSPECTION EQUIPMENT / CONSUMABLES,OPERATIONAL DELIVERY,ARCO UK LTD,1011705624,4743.85,FOR GOODS INVOICED UP TILL 28 FEB 18,HU1 2SJ,ADMIN
FOOD STANDARDS AGENCY - Westminster,FOOD STANDARDS AGENCY - Westminster,2018-04-13,EXP - PURCHASE OF GOODS/SERV - SUPPORT - IT SUPPORT SERVICES,IT SERVICE DELIVERY,RAINMAKER SOLUTIONS LTD,1011705740,4370,WORK RELATING TO IT MANAGEMENT COSTS,MK18 1HD,ADMIN
FOOD STANDARDS AGENCY - Westminster,FOOD STANDARDS AGENCY - Westminster,2018-04-09,EXP - PURCHASE OF GOODS/SERV - SUPPORT - IT SUPPORT SERVICES,IT SERVICE DELIVERY,LITTLE FISH UK LTD,1011705642,3347,Monthly Citrix Service Charge Sept 17 - Mar 18,NG1 1LS,ADMIN
FOOD STANDARDS AGENCY - Westminster,FOOD STANDARDS AGENCY - Westminster,2018-04-25,EXP - PURCHASE OF GOODS/SERVICES - RAIL TRAVEL,OPERATIONS ASSURANCE DIVISION (PROGRAMME),REDFERN TRAVEL LTD,1011705862,3041.15,Travel Expenses Week 15,BD1 5HQ,PROGRAMME
FOOD STANDARDS AGENCY - Westminster,FOOD STANDARDS AGENCY - Westminster,2018-04-25,EXP - PURCHASE OF GOODS/SERVICES - RAIL TRAVEL,REGULATORY DELIVERY,REDFERN TRAVEL LTD,1011705862,2671.23,Travel Expenses Week 15,BD1 5HQ,ADMIN
FOOD STANDARDS AGENCY - Westminster,FOOD STANDARDS AGENCY - Westminster,2018-04-09,EXP - PURCHASE OF GOODS/SERVICES - RAIL TRAVEL,OPERATIONAL DELIVERY,REDFERN TRAVEL LTD,1011705646,2586.1,Travel Expenses Week 12,BD1 5HQ,PROGRAMME
FOOD STANDARDS AGENCY - Westminster,FOOD STANDARDS AGENCY - Westminster,2018-04-25,EXP - PURCHASE OF GOODS/SERVICES - RAIL TRAVEL,OPERATIONAL DELIVERY,REDFERN TRAVEL LTD,1011705862,2520.4,Travel Expenses Week 15,BD1 5HQ,PROGRAMME
FOOD STANDARDS AGENCY - Westminster,FOOD STANDARDS AGENCY - Westminster,2018-04-09,EXP - PURCHASE OF GOODS/SERVICES - RAIL TRAVEL,OPERATIONS ASSURANCE DIVISION (PROGRAMME),REDFERN TRAVEL LTD,1011705646,2471.1,Travel Expenses Week 12,BD1 5HQ,PROGRAMME
FOOD STANDARDS AGENCY - Westminster,FOOD STANDARDS AGENCY - Westminster,2018-04-09,EXP - PURCHASE OF GOODS/SERV - SUPPORT - IT SUPPORT SERVICES,IT SERVICE DELIVERY,LITTLE FISH UK LTD,1011705642,2004,Monthly Mobile Service Charge Sept 17 - Mar 18,NG1 1LS,ADMIN
FOOD STANDARDS AGENCY - Westminster,FOOD STANDARDS AGENCY - Westminster,2018-04-25,EXP - PURCHASE OF GOODS/SERVICES - SUBSISTENCE,REGULATORY DELIVERY,REDFERN TRAVEL LTD,1011705862,1902.86,Travel Expenses Week 15,BD1 5HQ,ADMIN
FOOD STANDARDS AGENCY - Westminster,FOOD STANDARDS AGENCY - Westminster,2018-04-25,EXP - PURCHASE OF GOODS/SERVICES - RAIL TRAVEL,REGULATING OUR FUTURE,REDFERN TRAVEL LTD,1011705862,1772.8,Travel Expenses Week 15,BD1 5HQ,ADMIN
FOOD STANDARDS AGENCY - Westminster,FOOD STANDARDS AGENCY - Westminster,2018-04-25,EXP - PURCHASE OF GOODS/SERVICES - RAIL TRAVEL,ORGANISATIONAL DEVELOPMENT,REDFERN TRAVEL LTD,1011705862,1729.25,Travel Expenses Week 15,BD1 5HQ,ADMIN
FOOD STANDARDS AGENCY - Westminster,FOOD STANDARDS AGENCY - Westminster,2018-04-09,EXP - PURCHASE OF GOODS/SERVICES - RAIL TRAVEL,REGULATORY DELIVERY,REDFERN TRAVEL LTD,1011705646,1610.96,Travel Expenses Week 12,BD1 5HQ,ADMIN
FOOD STANDARDS AGENCY - Westminster,FOOD STANDARDS AGENCY - Westminster,2018-04-09,EXP - PURCHASE OF GOODS/SERVICES - RAIL TRAVEL,ORGANISATIONAL DEVELOPMENT,REDFERN TRAVEL LTD,1011705646,1412.03,Travel Expenses Week 12,BD1 5HQ,ADMIN
FOOD STANDARDS AGENCY - Westminster,FOOD STANDARDS AGENCY - Westminster,2018-04-09,EXP - PURCHASE OF GOODS/SERVICES - SUBSISTENCE,ORGANISATIONAL DEVELOPMENT,REDFERN TRAVEL LTD,1011705646,1125.5,Travel Expenses Week 12,BD1 5HQ,ADMIN
FOOD STANDARDS AGENCY - Westminster,FOOD STANDARDS AGENCY - Westminster,2018-04-25,EXP - PURCHASE OF GOODS/SERVICES - RAIL TRAVEL,FOOD INCIDENTS AND RESILIENCE PROG,REDFERN TRAVEL LTD,1011705862,1121.9,Travel Expenses Week 15,BD1 5HQ,PROGRAMME
FOOD STANDARDS AGENCY - Westminster,FOOD STANDARDS AGENCY - Westminster,2018-04-25,EXP - PURCHASE OF GOODS/SERVICES - SUBSISTENCE,OPERATIONS ASSURANCE DIVISION (PROGRAMME),REDFERN TRAVEL LTD,1011705862,1113.89,Travel Expenses Week 15,BD1 5HQ,PROGRAMME
FOOD STANDARDS AGENCY - Westminster,FOOD STANDARDS AGENCY - Westminster,2018-04-09,EXP - PURCHASE OF GOODS/SERVICES - SUBSISTENCE,OPERATIONAL DELIVERY,REDFERN TRAVEL LTD,1011705646,1015.44,Travel Expenses Week 12,BD1 5HQ,PROGRAMME
FOOD STANDARDS AGENCY - Westminster,FOOD STANDARDS AGENCY - Westminster,2018-04-09,EXP - PURCHASE OF GOODS/SERVICES - SUBSISTENCE,CORPORATE SUPPORT UNIT,REDFERN TRAVEL LTD,1011705646,975.48,Travel Expenses Week 12,BD1 5HQ,ADMIN
FOOD STANDARDS AGENCY - Westminster,FOOD STANDARDS AGENCY - Westminster,2018-04-25,EXP - PURCHASE OF GOODS/SERVICES - SUBSISTENCE,OPERATIONAL DELIVERY,REDFERN TRAVEL LTD,1011705862,932.71,Travel Expenses Week 15,BD1 5HQ,PROGRAMME
FOOD STANDARDS AGENCY - Westminster,FOOD STANDARDS AGENCY - Westminster,2018-04-09,EXP - PURCHASE OF GOODS/SERVICES - SUBSISTENCE,OPERATIONS ASSURANCE DIVISION (PROGRAMME),REDFERN TRAVEL LTD,1011705646,842.5,Travel Expenses Week 12,BD1 5HQ,PROGRAMME
FOOD STANDARDS AGENCY - Westminster,FOOD STANDARDS AGENCY - Westminster,2018-04-25,EXP - PURCHASE OF GOODS/SERVICES - SUBSISTENCE,REGULATING OUR FUTURE,REDFERN TRAVEL LTD,1011705862,773.1,Travel Expenses Week 15,BD1 5HQ,ADMIN
FOOD STANDARDS AGENCY - Westminster,FOOD STANDARDS AGENCY - Westminster,2018-04-09,EXP - PURCHASE OF GOODS/SERVICES - RAIL TRAVEL,FINANCE BRANCH,REDFERN TRAVEL LTD,1011705646,745.1,Travel Expenses Week 12,BD1 5HQ,ADMIN
FOOD STANDARDS AGENCY - Westminster,FOOD STANDARDS AGENCY - Westminster,2018-04-25,EXP - PURCHASE OF GOODS/SERVICES - RAIL TRAVEL,"RADIOLOGICAL, NOVEL FOOD & PROCESSES",REDFERN TRAVEL LTD,1011705862,727.4,Travel Expenses Week 15,BD1 5HQ,ADMIN
FOOD STANDARDS AGENCY - Westminster,FOOD STANDARDS AGENCY - Westminster,2018-04-25,EXP - PURCHASE OF GOODS/SERVICES - RAIL TRAVEL,East 4,REDFERN TRAVEL LTD,1011705862,726,Travel Expenses Week 15,BD1 5HQ,PROGRAMME
FOOD STANDARDS AGENCY - Westminster,FOOD STANDARDS AGENCY - Westminster,2018-04-25,EXP - PURCHASE OF GOODS/SERVICES - SUBSISTENCE,INFORMATION & KNOWLEDGE MANAGMENT,REDFERN TRAVEL LTD,1011705862,718.1,Travel Expenses Week 15,BD1 5HQ,ADMIN
FOOD STANDARDS AGENCY - Westminster,FOOD STANDARDS AGENCY - Westminster,2018-04-25,EXP - PURCHASE OF GOODS/SERVICES - SUBSISTENCE,ORGANISATIONAL DEVELOPMENT,REDFERN TRAVEL LTD,1011705862,682.74,Travel Expenses Week 15,BD1 5HQ,ADMIN
FOOD STANDARDS AGENCY - Westminster,FOOD STANDARDS AGENCY - Westminster,2018-04-25,EXP - PURCHASE OF GOODS/SERVICES - RAIL TRAVEL,COMMS,REDFERN TRAVEL LTD,1011705862,660.56,Travel Expenses Week 15,BD1 5HQ,ADMIN
FOOD STANDARDS AGENCY - Westminster,FOOD STANDARDS AGENCY - Westminster,2018-04-09,EXP - PURCHASE OF GOODS/SERVICES - SUBSISTENCE,"AGRICULTURAL, PROCESS & ENVIRONMENTAL CONTAMINANTS",REDFERN TRAVEL LTD,1011705646,642.18,Travel Expenses Week 12,BD1 5HQ,ADMIN
FOOD STANDARDS AGENCY - Westminster,FOOD STANDARDS AGENCY - Westminster,2018-04-09,EXP - PURCHASE OF GOODS/SERVICES - SUBSISTENCE,REGULATING OUR FUTURE,REDFERN TRAVEL LTD,1011705646,614.87,Travel Expenses Week 12,BD1 5HQ,ADMIN
FOOD STANDARDS AGENCY - Westminster,FOOD STANDARDS AGENCY - Westminster,2018-04-09,EXP - PURCHASE OF GOODS/SERVICES -  FOREIGN AIR TRAVEL,"AGRICULTURAL, PROCESS & ENVIRONMENTAL CONTAMINANTS",REDFERN TRAVEL LTD,1011705646,589,Travel Expenses Week 12,BD1 5HQ,ADMIN
FOOD STANDARDS AGENCY - Westminster,FOOD STANDARDS AGENCY - Westminster,2018-04-09,EXP - PURCHASE OF GOODS/SERVICES - RAIL TRAVEL,NON MEAT FIELD OPS,REDFERN TRAVEL LTD,1011705646,587.8,Travel Expenses Week 12,BD1 5HQ,PROGRAMME
FOOD STANDARDS AGENCY - Westminster,FOOD STANDARDS AGENCY - Westminster,2018-04-09,EXP - PURCHASE OF GOODS/SERVICES - SUBSISTENCE,LEGAL  BRANCH A & INVESTIGATIONS,REDFERN TRAVEL LTD,1011705646,573.96,Travel Expenses Week 12,BD1 5HQ,ADMIN
FOOD STANDARDS AGENCY - Westminster,FOOD STANDARDS AGENCY - Westminster,2018-04-25,EXP - PURCHASE OF GOODS/SERVICES - RAIL TRAVEL,FINANCE BRANCH,REDFERN TRAVEL LTD,1011705862,522.7,Travel Expenses Week 15,BD1 5HQ,ADMIN
FOOD STANDARDS AGENCY - Westminster,FOOD STANDARDS AGENCY - Westminster,2018-04-09,EXP - PURCHASE OF GOODS/SERVICES - RAIL TRAVEL,LEGAL  BRANCH A & INVESTIGATIONS,REDFERN TRAVEL LTD,1011705646,516.5,Travel Expenses Week 12,BD1 5HQ,ADMIN
FOOD STANDARDS AGENCY - Westminster,FOOD STANDARDS AGENCY - Westminster,2018-04-09,EXP - PURCHASE OF GOODS/SERVICES - RAIL TRAVEL,"PLANNING, PERFORMANCE & CHANGE",REDFERN TRAVEL LTD,1011705646,504.1,Travel Expenses Week 12,BD1 5HQ,ADMIN
FOOD STANDARDS AGENCY - Westminster,FOOD STANDARDS AGENCY - Westminster,2018-04-09,EXP - PURCHASE OF GOODS/SERV - SUPPORT - IT SUPPORT SERVICES,IT SERVICE DELIVERY,LITTLE FISH UK LTD,1011705642,501,Monthly Training Service Charge Sept 17 - Mar 18,NG1 1LS,ADMIN
FOOD STANDARDS AGENCY - Westminster,FOOD STANDARDS AGENCY - Westminster,2018-04-09,EXP - PURCHASE OF GOODS/SERVICES - SUBSISTENCE,Wales and West 1 (England),REDFERN TRAVEL LTD,1011705646,489.45,Travel Expenses Week 12,BD1 5HQ,PROGRAMME
FOOD STANDARDS AGENCY - Westminster,FOOD STANDARDS AGENCY - Westminster,2018-04-09,EXP - PURCHASE OF GOODS/SERVICES - RAIL TRAVEL,COMMS,REDFERN TRAVEL LTD,1011705646,486.2,Travel Expenses Week 12,BD1 5HQ,ADMIN
FOOD STANDARDS AGENCY - Westminster,FOOD STANDARDS AGENCY - Westminster,2018-04-09,EXP - PURCHASE OF GOODS/SERVICES - RAIL TRAVEL,CHIEF EXECUTIVE & PRIVATE OFFICE,REDFERN TRAVEL LTD,1011705646,468.33,Travel Expenses Week 12,BD1 5HQ,ADMIN
FOOD STANDARDS AGENCY - Westminster,FOOD STANDARDS AGENCY - Westminster,2018-04-25,EXP - PURCHASE OF GOODS/SERVICES - RAIL TRAVEL,PROGRAMME AND PROJECT DELIVERY,REDFERN TRAVEL LTD,1011705862,462,Travel Expenses Week 15,BD1 5HQ,ADMIN
FOOD STANDARDS AGENCY - Westminster,FOOD STANDARDS AGENCY - Westminster,2018-04-25,EXP - PURCHASE OF GOODS/SERVICES - RAIL TRAVEL,North 4,REDFERN TRAVEL LTD,1011705862,450.7,Travel Expenses Week 15,BD1 5HQ,PROGRAMME
FOOD STANDARDS AGENCY - Westminster,FOOD STANDARDS AGENCY - Westminster,2018-04-09,EXP - PURCHASE OF GOODS/SERVICES - AIR TRAVEL,REGULATORY & INTERNATIONAL,REDFERN TRAVEL LTD,1011705646,444.13,Travel Expenses Week 12,BD1 5HQ,ADMIN
FOOD STANDARDS AGENCY - Westminster,FOOD STANDARDS AGENCY - Westminster,2018-04-09,EXP - PURCHASE OF GOODS/SERVICES - RAIL TRAVEL,REGULATORY & INTERNATIONAL,REDFERN TRAVEL LTD,1011705646,434.4,Travel Expenses Week 12,BD1 5HQ,ADMIN
FOOD STANDARDS AGENCY - Westminster,FOOD STANDARDS AGENCY - Westminster,2018-04-25,EXP - PURCHASE OF GOODS/SERVICES - RAIL TRAVEL,CHIEF EXECUTIVE & PRIVATE OFFICE,REDFERN TRAVEL LTD,1011705862,425.8,Travel Expenses Week 15,BD1 5HQ,ADMIN
FOOD STANDARDS AGENCY - Westminster,FOOD STANDARDS AGENCY - Westminster,2018-04-09,EXP - PURCHASE OF GOODS/SERVICES - FOREIGN SUBSISTENCE,REGULATORY & INTERNATIONAL,REDFERN TRAVEL LTD,1011705646,393.85,Travel Expenses Week 12,BD1 5HQ,ADMIN
FOOD STANDARDS AGENCY - Westminster,FOOD STANDARDS AGENCY - Westminster,2018-04-25,EXP - PURCHASE OF GOODS/SERVICES - RAIL TRAVEL,"PLANNING, PERFORMANCE & CHANGE",REDFERN TRAVEL LTD,1011705862,393.1,Travel Expenses Week 15,BD1 5HQ,ADMIN
FOOD STANDARDS AGENCY - Westminster,FOOD STANDARDS AGENCY - Westminster,2018-04-25,EXP - PURCHASE OF GOODS/SERVICES - SUBSISTENCE,FOOD INCIDENTS AND RESILIENCE PROG,REDFERN TRAVEL LTD,1011705862,387,Travel Expenses Week 15,BD1 5HQ,PROGRAMME
FOOD STANDARDS AGENCY - Westminster,FOOD STANDARDS AGENCY - Westminster,2018-04-09,EXP - PURCHASE OF GOODS/SERVICES - RAIL TRAVEL,IT SERVICE DELIVERY,REDFERN TRAVEL LTD,1011705646,383.8,Travel Expenses Week 12,BD1 5HQ,ADMIN
FOOD STANDARDS AGENCY - Westminster,FOOD STANDARDS AGENCY - Westminster,2018-04-25,EXP - PURCHASE OF GOODS/SERVICES - RAIL TRAVEL,Wales and West 1 (Wales),REDFERN TRAVEL LTD,1011705862,363.5,Travel Expenses Week 15,BD1 5HQ,PROGRAMME
FOOD STANDARDS AGENCY - Westminster,FOOD STANDARDS AGENCY - Westminster,2018-04-25,EXP - PURCHASE OF GOODS/SERVICES - SUBSISTENCE,COMMS,REDFERN TRAVEL LTD,1011705862,362.13,Travel Expenses Week 15,BD1 5HQ,ADMIN
FOOD STANDARDS AGENCY - Westminster,FOOD STANDARDS AGENCY - Westminster,2018-04-09,EXP - PURCHASE OF GOODS/SERVICES - RAIL TRAVEL,ANALYSIS & RESEARCH BRANCH,REDFERN TRAVEL LTD,1011705646,355.7,Travel Expenses Week 12,BD1 5HQ,ADMIN
FOOD STANDARDS AGENCY - Westminster,FOOD STANDARDS AGENCY - Westminster,2018-04-25,EXP - PURCHASE OF GOODS/SERVICES - SUBSISTENCE,Wales and West 4 ,REDFERN TRAVEL LTD,1011705862,351.04,Travel Expenses Week 15,BD1 5HQ,PROGRAMME
FOOD STANDARDS AGENCY - Westminster,FOOD STANDARDS AGENCY - Westminster,2018-04-25,EXP - PURCHASE OF GOODS/SERVICES - RAIL TRAVEL,Wales and West 2 (Wales),REDFERN TRAVEL LTD,1011705862,348.2,Travel Expenses Week 15,BD1 5HQ,PROGRAMME
FOOD STANDARDS AGENCY - Westminster,FOOD STANDARDS AGENCY - Westminster,2018-04-09,EXP - PURCHASE OF GOODS/SERVICES - SUBSISTENCE,INTERNAL AUDIT,REDFERN TRAVEL LTD,1011705646,345.6,Travel Expenses Week 12,BD1 5HQ,ADMIN
FOOD STANDARDS AGENCY - Westminster,FOOD STANDARDS AGENCY - Westminster,2018-04-25,EXP - PURCHASE OF GOODS/SERVICES - RAIL TRAVEL,Wales and West 1 (England),REDFERN TRAVEL LTD,1011705862,339.25,Travel Expenses Week 15,BD1 5HQ,PROGRAMME
FOOD STANDARDS AGENCY - Westminster,FOOD STANDARDS AGENCY - Westminster,2018-04-25,EXP - PURCHASE OF GOODS/SERVICES - RAIL TRAVEL,NON MEAT FIELD OPS,REDFERN TRAVEL LTD,1011705862,335.2,Travel Expenses Week 15,BD1 5HQ,PROGRAMME
FOOD STANDARDS AGENCY - Westminster,FOOD STANDARDS AGENCY - Westminster,2018-04-25,EXP - PURCHASE OF GOODS/SERVICES - AIR TRAVEL,OPERATIONAL DELIVERY,REDFERN TRAVEL LTD,1011705862,326.52,Travel Expenses Week 15,BD1 5HQ,PROGRAMME
FOOD STANDARDS AGENCY - Westminster,FOOD STANDARDS AGENCY - Westminster,2018-04-25,EXP - PURCHASE OF GOODS/SERVICES - AIR TRAVEL,SCIENTIFIC METHODS AND LABORATORY POLICY,REDFERN TRAVEL LTD,1011705862,325.4,Travel Expenses Week 15,BD1 5HQ,ADMIN
FOOD STANDARDS AGENCY - Westminster,FOOD STANDARDS AGENCY - Westminster,2018-04-09,EXP - PURCHASE OF GOODS/SERVICES - RAIL TRAVEL,FOOD INCIDENTS AND RESILIENCE PROG,REDFERN TRAVEL LTD,1011705646,324.5,Travel Expenses Week 12,BD1 5HQ,PROGRAMME
FOOD STANDARDS AGENCY - Westminster,FOOD STANDARDS AGENCY - Westminster,2018-04-25,EXP - PURCHASE OF GOODS/SERVICES - SUBSISTENCE,Wales and West 2 (Wales),REDFERN TRAVEL LTD,1011705862,323.98,Travel Expenses Week 15,BD1 5HQ,PROGRAMME
FOOD STANDARDS AGENCY - Westminster,FOOD STANDARDS AGENCY - Westminster,2018-04-09,EXP - PURCHASE OF GOODS/SERVICES - SUBSISTENCE,FOOD INCIDENTS AND RESILIENCE PROG,REDFERN TRAVEL LTD,1011705646,323.05,Travel Expenses Week 12,BD1 5HQ,PROGRAMME
FOOD STANDARDS AGENCY - Westminster,FOOD STANDARDS AGENCY - Westminster,2018-04-09,EXP - PURCHASE OF GOODS/SERVICES - FOREIGN SUBSISTENCE,"AGRICULTURAL, PROCESS & ENVIRONMENTAL CONTAMINANTS",REDFERN TRAVEL LTD,1011705646,319.58,Travel Expenses Week 12,BD1 5HQ,ADMIN
FOOD STANDARDS AGENCY - Westminster,FOOD STANDARDS AGENCY - Westminster,2018-04-09,EXP - PURCHASE OF GOODS/SERVICES - RAIL TRAVEL,INFORMATION & KNOWLEDGE MANAGMENT,REDFERN TRAVEL LTD,1011705646,302.3,Travel Expenses Week 12,BD1 5HQ,ADMIN
FOOD STANDARDS AGENCY - Westminster,FOOD STANDARDS AGENCY - Westminster,2018-04-09,EXP - PURCHASE OF GOODS/SERVICES - SUBSISTENCE,INPORT & EXPORTS TEAM,REDFERN TRAVEL LTD,1011705646,300.38,Travel Expenses Week 12,BD1 5HQ,ADMIN
FOOD STANDARDS AGENCY - Westminster,FOOD STANDARDS AGENCY - Westminster,2018-04-09,EXP - PURCHASE OF GOODS/SERVICES - RAIL TRAVEL,CORPORATE SUPPORT UNIT,REDFERN TRAVEL LTD,1011705646,280.96,Travel Expenses Week 12,BD1 5HQ,ADMIN
FOOD STANDARDS AGENCY - Westminster,FOOD STANDARDS AGENCY - Westminster,2018-04-09,EXP - PURCHASE OF GOODS/SERVICES - AIR TRAVEL,COMMS,REDFERN TRAVEL LTD,1011705646,273.25,Travel Expenses Week 12,BD1 5HQ,ADMIN
FOOD STANDARDS AGENCY - Westminster,FOOD STANDARDS AGENCY - Westminster,2018-04-25,EXP - PURCHASE OF GOODS/SERVICES - AIR TRAVEL,FINANCE BRANCH,REDFERN TRAVEL LTD,1011705862,270.13,Travel Expenses Week 15,BD1 5HQ,ADMIN
FOOD STANDARDS AGENCY - Westminster,FOOD STANDARDS AGENCY - Westminster,2018-04-25,EXP - PURCHASE OF GOODS/SERVICES - RAIL TRAVEL,CHIEF SCIENTIST  ,REDFERN TRAVEL LTD,1011705862,266.7,Travel Expenses Week 15,BD1 5HQ,ADMIN
FOOD STANDARDS AGENCY - Westminster,FOOD STANDARDS AGENCY - Westminster,2018-04-09,EXP - PURCHASE OF GOODS/SERVICES - SUBSISTENCE,REGULATORY & INTERNATIONAL,REDFERN TRAVEL LTD,1011705646,266.4,Travel Expenses Week 12,BD1 5HQ,ADMIN
FOOD STANDARDS AGENCY - Westminster,FOOD STANDARDS AGENCY - Westminster,2018-04-25,EXP - PURCHASE OF GOODS/SERVICES - RAIL TRAVEL,INFORMATION & KNOWLEDGE MANAGMENT,REDFERN TRAVEL LTD,1011705862,266,Travel Expenses Week 15,BD1 5HQ,ADMIN
FOOD STANDARDS AGENCY - Westminster,FOOD STANDARDS AGENCY - Westminster,2018-04-25,EXP - PURCHASE OF GOODS/SERVICES - SUBSISTENCE,CHIEF EXECUTIVE & PRIVATE OFFICE,REDFERN TRAVEL LTD,1011705862,261.1,Travel Expenses Week 15,BD1 5HQ,ADMIN
FOOD STANDARDS AGENCY - Westminster,FOOD STANDARDS AGENCY - Westminster,2018-04-25,EXP - PURCHASE OF GOODS/SERVICES - TAXI SERVICES,OPERATIONAL DELIVERY,REDFERN TRAVEL LTD,1011705862,260.7,Travel Expenses Week 15,BD1 5HQ,PROGRAMME
FOOD STANDARDS AGENCY - Westminster,FOOD STANDARDS AGENCY - Westminster,2018-04-09,EXP - PURCHASE OF GOODS/SERVICES - SUBSISTENCE,DIGITAL,REDFERN TRAVEL LTD,1011705646,250.6,Travel Expenses Week 12,BD1 5HQ,ADMIN
FOOD STANDARDS AGENCY - Westminster,FOOD STANDARDS AGENCY - Westminster,2018-04-09,EXP - PURCHASE OF GOODS/SERVICES - SUBSISTENCE,COMMS,REDFERN TRAVEL LTD,1011705646,247.2,Travel Expenses Week 12,BD1 5HQ,ADMIN
FOOD STANDARDS AGENCY - Westminster,FOOD STANDARDS AGENCY - Westminster,2018-04-09,EXP - PURCHASE OF GOODS/SERVICES - SUBSISTENCE,IT STRATEGY & DEVELOPMENT,REDFERN TRAVEL LTD,1011705646,245,Travel Expenses Week 12,BD1 5HQ,ADMIN
FOOD STANDARDS AGENCY - Westminster,FOOD STANDARDS AGENCY - Westminster,2018-04-09,EXP - PURCHASE OF GOODS/SERVICES - SUBSISTENCE,Wales and West 4 ,REDFERN TRAVEL LTD,1011705646,242.83,Travel Expenses Week 12,BD1 5HQ,PROGRAMME
FOOD STANDARDS AGENCY - Westminster,FOOD STANDARDS AGENCY - Westminster,2018-04-25,EXP - PURCHASE OF GOODS/SERVICES -  FOREIGN AIR TRAVEL,LEGAL  BRANCH A & INVESTIGATIONS,REDFERN TRAVEL LTD,1011705862,242.32,Travel Expenses Week 15,BD1 5HQ,ADMIN
FOOD STANDARDS AGENCY - Westminster,FOOD STANDARDS AGENCY - Westminster,2018-04-09,EXP - PURCHASE OF GOODS/SERVICES - RAIL TRAVEL,CHIEF SCIENTIST  ,REDFERN TRAVEL LTD,1011705646,241.2,Travel Expenses Week 12,BD1 5HQ,ADMIN
FOOD STANDARDS AGENCY - Westminster,FOOD STANDARDS AGENCY - Westminster,2018-04-09,EXP - PURCHASE OF GOODS/SERVICES - RAIL TRAVEL,North 1,REDFERN TRAVEL LTD,1011705646,228.6,Travel Expenses Week 12,BD1 5HQ,PROGRAMME
FOOD STANDARDS AGENCY - Westminster,FOOD STANDARDS AGENCY - Westminster,2018-04-09,EXP - PURCHASE OF GOODS/SERVICES - SUBSISTENCE,FOOD ADDITIVES,REDFERN TRAVEL LTD,1011705646,224.78,Travel Expenses Week 12,BD1 5HQ,ADMIN
FOOD STANDARDS AGENCY - Westminster,FOOD STANDARDS AGENCY - Westminster,2018-04-09,EXP - PURCHASE OF GOODS/SERVICES - SUBSISTENCE,"PLANNING, PERFORMANCE & CHANGE",REDFERN TRAVEL LTD,1011705646,223.2,Travel Expenses Week 12,BD1 5HQ,ADMIN
FOOD STANDARDS AGENCY - Westminster,FOOD STANDARDS AGENCY - Westminster,2018-04-25,EXP - PURCHASE OF GOODS/SERVICES - RAIL TRAVEL,INTERNAL AUDIT,REDFERN TRAVEL LTD,1011705862,222.8,Travel Expenses Week 15,BD1 5HQ,ADMIN
FOOD STANDARDS AGENCY - Westminster,FOOD STANDARDS AGENCY - Westminster,2018-04-09,EXP - PURCHASE OF GOODS/SERVICES - SUBSISTENCE,PROGRAMME AND PROJECT DELIVERY,REDFERN TRAVEL LTD,1011705646,220.6,Travel Expenses Week 12,BD1 5HQ,ADMIN
FOOD STANDARDS AGENCY - Westminster,FOOD STANDARDS AGENCY - Westminster,2018-04-09,EXP - PURCHASE OF GOODS/SERVICES - SUBSISTENCE,REGULATORY DELIVERY,REDFERN TRAVEL LTD,1011705646,216.4,Travel Expenses Week 12,BD1 5HQ,ADMIN
FOOD STANDARDS AGENCY - Westminster,FOOD STANDARDS AGENCY - Westminster,2018-04-25,EXP - PURCHASE OF GOODS/SERVICES - RAIL TRAVEL,North 1,REDFERN TRAVEL LTD,1011705862,214.2,Travel Expenses Week 15,BD1 5HQ,PROGRAMME
FOOD STANDARDS AGENCY - Westminster,FOOD STANDARDS AGENCY - Westminster,2018-04-09,EXP - PURCHASE OF GOODS/SERVICES -  FOREIGN AIR TRAVEL,CHIEF SCIENTIST  ,REDFERN TRAVEL LTD,1011705646,206.06,Travel Expenses Week 12,BD1 5HQ,ADMIN
FOOD STANDARDS AGENCY - Westminster,FOOD STANDARDS AGENCY - Westminster,2018-04-25,EXP - PURCHASE OF GOODS/SERVICES - RAIL TRAVEL,IT STRATEGY & DEVELOPMENT,REDFERN TRAVEL LTD,1011705862,206,Travel Expenses Week 15,BD1 5HQ,ADMIN
FOOD STANDARDS AGENCY - Westminster,FOOD STANDARDS AGENCY - Westminster,2018-04-09,EXP - PURCHASE OF GOODS/SERVICES -  FOREIGN AIR TRAVEL,MICRO FOOD SAFETY BRANCH,REDFERN TRAVEL LTD,1011705646,205.33,Travel Expenses Week 12,BD1 5HQ,ADMIN
FOOD STANDARDS AGENCY - Westminster,FOOD STANDARDS AGENCY - Westminster,2018-04-09,EXP - PURCHASE OF GOODS/SERVICES - AIR TRAVEL,FOOD INCIDENTS AND RESILIENCE PROG,REDFERN TRAVEL LTD,1011705646,204.17,Travel Expenses Week 12,BD1 5HQ,PROGRAMME
FOOD STANDARDS AGENCY - Westminster,FOOD STANDARDS AGENCY - Westminster,2018-04-25,EXP - PURCHASE OF GOODS/SERVICES - RAIL TRAVEL,Wales and West 4 ,REDFERN TRAVEL LTD,1011705862,203.1,Travel Expenses Week 15,BD1 5HQ,PROGRAMME
FOOD STANDARDS AGENCY - Westminster,FOOD STANDARDS AGENCY - Westminster,2018-04-25,EXP - PURCHASE OF GOODS/SERVICES - AIR TRAVEL,ORGANISATIONAL DEVELOPMENT,REDFERN TRAVEL LTD,1011705862,202.98,Travel Expenses Week 15,BD1 5HQ,ADMIN
FOOD STANDARDS AGENCY - Westminster,FOOD STANDARDS AGENCY - Westminster,2018-04-25,EXP - PURCHASE OF GOODS/SERVICES - AIR TRAVEL,REGULATORY DELIVERY,REDFERN TRAVEL LTD,1011705862,199.74,Travel Expenses Week 15,BD1 5HQ,ADMIN
FOOD STANDARDS AGENCY - Westminster,FOOD STANDARDS AGENCY - Westminster,2018-04-09,EXP - PURCHASE OF GOODS/SERVICES - RAIL TRAVEL,RESILIENCE ADMIN,REDFERN TRAVEL LTD,1011705646,196.9,Travel Expenses Week 12,BD1 5HQ,ADMIN
FOOD STANDARDS AGENCY - Westminster,FOOD STANDARDS AGENCY - Westminster,2018-04-25,EXP - PURCHASE OF GOODS/SERVICES - SUBSISTENCE,North 4,REDFERN TRAVEL LTD,1011705862,195.97,Travel Expenses Week 15,BD1 5HQ,PROGRAMME
FOOD STANDARDS AGENCY - Westminster,FOOD STANDARDS AGENCY - Westminster,2018-04-25,EXP - PURCHASE OF GOODS/SERVICES - FOREIGN SUBSISTENCE,"RADIOLOGICAL, NOVEL FOOD & PROCESSES",REDFERN TRAVEL LTD,1011705862,193,Travel Expenses Week 15,BD1 5HQ,ADMIN
FOOD STANDARDS AGENCY - Westminster,FOOD STANDARDS AGENCY - Westminster,2018-04-25,EXP - PURCHASE OF GOODS/SERVICES -  FOREIGN AIR TRAVEL,"AGRICULTURAL, PROCESS & ENVIRONMENTAL CONTAMINANTS",REDFERN TRAVEL LTD,1011705862,193,Travel Expenses Week 15,BD1 5HQ,ADMIN
FOOD STANDARDS AGENCY - Westminster,FOOD STANDARDS AGENCY - Westminster,2018-04-25,EXP - PURCHASE OF GOODS/SERVICES - SUBSISTENCE,NON MEAT FIELD OPS,REDFERN TRAVEL LTD,1011705862,191.4,Travel Expenses Week 15,BD1 5HQ,PROGRAMME
FOOD STANDARDS AGENCY - Westminster,FOOD STANDARDS AGENCY - Westminster,2018-04-25,EXP - PURCHASE OF GOODS/SERVICES - RAIL TRAVEL,REGULATORY & INTERNATIONAL,REDFERN TRAVEL LTD,1011705862,186,Travel Expenses Week 15,BD1 5HQ,ADMIN
FOOD STANDARDS AGENCY - Westminster,FOOD STANDARDS AGENCY - Westminster,2018-04-25,EXP - PURCHASE OF GOODS/SERVICES - AIR TRAVEL,"RADIOLOGICAL, NOVEL FOOD & PROCESSES",REDFERN TRAVEL LTD,1011705862,178,Travel Expenses Week 15,BD1 5HQ,ADMIN
FOOD STANDARDS AGENCY - Westminster,FOOD STANDARDS AGENCY - Westminster,2018-04-09,EXP - PURCHASE OF GOODS/SERVICES - RAIL TRAVEL,Wales and West 1 (England),REDFERN TRAVEL LTD,1011705646,177.7,Travel Expenses Week 12,BD1 5HQ,PROGRAMME
FOOD STANDARDS AGENCY - Westminster,FOOD STANDARDS AGENCY - Westminster,2018-04-25,EXP - PURCHASE OF GOODS/SERVICES - SUBSISTENCE,PROCUREMENT,REDFERN TRAVEL LTD,1011705862,176.2,Travel Expenses Week 15,BD1 5HQ,ADMIN
FOOD STANDARDS AGENCY - Westminster,FOOD STANDARDS AGENCY - Westminster,2018-04-25,EXP - PURCHASE OF GOODS/SERVICES - AIR TRAVEL,REGULATORY & INTERNATIONAL,REDFERN TRAVEL LTD,1011705862,173.32,Travel Expenses Week 15,BD1 5HQ,ADMIN
FOOD STANDARDS AGENCY - Westminster,FOOD STANDARDS AGENCY - Westminster,2018-04-25,EXP - PURCHASE OF GOODS/SERVICES - RAIL TRAVEL,LEGAL  BRANCH A & INVESTIGATIONS,REDFERN TRAVEL LTD,1011705862,172.7,Travel Expenses Week 15,BD1 5HQ,ADMIN
FOOD STANDARDS AGENCY - Westminster,FOOD STANDARDS AGENCY - Westminster,2018-04-25,EXP - PURCHASE OF GOODS/SERVICES - SUBSISTENCE,FINANCE BRANCH,REDFERN TRAVEL LTD,1011705862,171.3,Travel Expenses Week 15,BD1 5HQ,ADMIN
FOOD STANDARDS AGENCY - Westminster,FOOD STANDARDS AGENCY - Westminster,2018-04-25,EXP - PURCHASE OF GOODS/SERVICES - RAIL TRAVEL,CHEMICAL RISK ASSESSMENT UNIT,REDFERN TRAVEL LTD,1011705862,170.5,Travel Expenses Week 15,BD1 5HQ,ADMIN
FOOD STANDARDS AGENCY - Westminster,FOOD STANDARDS AGENCY - Westminster,2018-04-09,EXP - PURCHASE OF GOODS/SERVICES - SUBSISTENCE,INFORMATION & KNOWLEDGE MANAGMENT,REDFERN TRAVEL LTD,1011705646,170.2,Travel Expenses Week 12,BD1 5HQ,ADMIN
FOOD STANDARDS AGENCY - Westminster,FOOD STANDARDS AGENCY - Westminster,2018-04-09,EXP - PURCHASE OF GOODS/SERVICES - SUBSISTENCE,Wales and West 3 ,REDFERN TRAVEL LTD,1011705646,169.74,Travel Expenses Week 12,BD1 5HQ,PROGRAMME
FOOD STANDARDS AGENCY - Westminster,FOOD STANDARDS AGENCY - Westminster,2018-04-25,EXP - PURCHASE OF GOODS/SERVICES - SUBSISTENCE,Wales and West 1 (England),REDFERN TRAVEL LTD,1011705862,157.45,Travel Expenses Week 15,BD1 5HQ,PROGRAMME
FOOD STANDARDS AGENCY - Westminster,FOOD STANDARDS AGENCY - Westminster,2018-04-25,EXP - PURCHASE OF GOODS/SERVICES - RAIL TRAVEL,East 3,REDFERN TRAVEL LTD,1011705862,157,Travel Expenses Week 15,BD1 5HQ,PROGRAMME
FOOD STANDARDS AGENCY - Westminster,FOOD STANDARDS AGENCY - Westminster,2018-04-25,EXP - PURCHASE OF GOODS/SERVICES - SUBSISTENCE,"RADIOLOGICAL, NOVEL FOOD & PROCESSES",REDFERN TRAVEL LTD,1011705862,156.6,Travel Expenses Week 15,BD1 5HQ,ADMIN
FOOD STANDARDS AGENCY - Westminster,FOOD STANDARDS AGENCY - Westminster,2018-04-09,EXP - PURCHASE OF GOODS/SERVICES - FOREIGN SUBSISTENCE,INPORT & EXPORTS TEAM,REDFERN TRAVEL LTD,1011705646,151.39,Travel Expenses Week 12,BD1 5HQ,ADMIN
FOOD STANDARDS AGENCY - Westminster,FOOD STANDARDS AGENCY - Westminster,2018-04-25,EXP - PURCHASE OF GOODS/SERVICES - SUBSISTENCE,INPORT & EXPORTS TEAM,REDFERN TRAVEL LTD,1011705862,148.58,Travel Expenses Week 15,BD1 5HQ,ADMIN
FOOD STANDARDS AGENCY - Westminster,FOOD STANDARDS AGENCY - Westminster,2018-04-09,EXP - PURCHASE OF GOODS/SERVICES - AIR TRAVEL,"ANIMAL FEED, TSEs & ABPs",REDFERN TRAVEL LTD,1011705646,145.24,Travel Expenses Week 12,BD1 5HQ,ADMIN
FOOD STANDARDS AGENCY - Westminster,FOOD STANDARDS AGENCY - Westminster,2018-04-09,EXP - PURCHASE OF GOODS/SERVICES - AIR TRAVEL,FINANCE BRANCH,REDFERN TRAVEL LTD,1011705646,142.3,Travel Expenses Week 12,BD1 5HQ,ADMIN
FOOD STANDARDS AGENCY - Westminster,FOOD STANDARDS AGENCY - Westminster,2018-04-25,EXP - PURCHASE OF GOODS/SERVICES - RAIL TRAVEL,PROCUREMENT,REDFERN TRAVEL LTD,1011705862,142,Travel Expenses Week 15,BD1 5HQ,ADMIN
FOOD STANDARDS AGENCY - Westminster,FOOD STANDARDS AGENCY - Westminster,2018-04-09,EXP - PURCHASE OF GOODS/SERVICES - RAIL TRAVEL,North 3,REDFERN TRAVEL LTD,1011705646,140.8,Travel Expenses Week 12,BD1 5HQ,PROGRAMME
FOOD STANDARDS AGENCY - Westminster,FOOD STANDARDS AGENCY - Westminster,2018-04-25,EXP - PURCHASE OF GOODS/SERVICES - FOREIGN SUBSISTENCE,FOODBORNE DISEASE CONTROL,REDFERN TRAVEL LTD,1011705862,138.27,Travel Expenses Week 15,BD1 5HQ,ADMIN
FOOD STANDARDS AGENCY - Westminster,FOOD STANDARDS AGENCY - Westminster,2018-04-09,EXP - PURCHASE OF GOODS/SERVICES - RAIL TRAVEL,ALLERGY & INTOLERANCE,REDFERN TRAVEL LTD,1011705646,137.4,Travel Expenses Week 12,BD1 5HQ,ADMIN
FOOD STANDARDS AGENCY - Westminster,FOOD STANDARDS AGENCY - Westminster,2018-04-25,EXP - PURCHASE OF GOODS/SERVICES - SUBSISTENCE,REGULATORY & INTERNATIONAL,REDFERN TRAVEL LTD,1011705862,130.1,Travel Expenses Week 15,BD1 5HQ,ADMIN
FOOD STANDARDS AGENCY - Westminster,FOOD STANDARDS AGENCY - Westminster,2018-04-09,EXP - PURCHASE OF GOODS/SERVICES - AIR TRAVEL,OPERATIONS ASSURANCE DIVISION (PROGRAMME),REDFERN TRAVEL LTD,1011705646,129.05,Travel Expenses Week 12,BD1 5HQ,PROGRAMME
FOOD STANDARDS AGENCY - Westminster,FOOD STANDARDS AGENCY - Westminster,2018-04-25,EXP - PURCHASE OF GOODS/SERVICES - SUBSISTENCE,LEGAL  BRANCH A & INVESTIGATIONS,REDFERN TRAVEL LTD,1011705862,128.7,Travel Expenses Week 15,BD1 5HQ,ADMIN
FOOD STANDARDS AGENCY - Westminster,FOOD STANDARDS AGENCY - Westminster,2018-04-25,EXP - PURCHASE OF GOODS/SERVICES - AIR TRAVEL,ANIMAL FEED,REDFERN TRAVEL LTD,1011705862,126.54,Travel Expenses Week 15,BD1 5HQ,ADMIN
FOOD STANDARDS AGENCY - Westminster,FOOD STANDARDS AGENCY - Westminster,2018-04-09,EXP - PURCHASE OF GOODS/SERVICES - SUBSISTENCE,NON MEAT FIELD OPS,REDFERN TRAVEL LTD,1011705646,124.6,Travel Expenses Week 12,BD1 5HQ,PROGRAMME
FOOD STANDARDS AGENCY - Westminster,FOOD STANDARDS AGENCY - Westminster,2018-04-25,EXP - PURCHASE OF GOODS/SERVICES - SUBSISTENCE,"PLANNING, PERFORMANCE & CHANGE",REDFERN TRAVEL LTD,1011705862,120.6,Travel Expenses Week 15,BD1 5HQ,ADMIN
FOOD STANDARDS AGENCY - Westminster,FOOD STANDARDS AGENCY - Westminster,2018-04-09,EXP - PURCHASE OF GOODS/SERVICES - RAIL TRAVEL,Wales and West 2 (Wales),REDFERN TRAVEL LTD,1011705646,119.8,Travel Expenses Week 12,BD1 5HQ,PROGRAMME
FOOD STANDARDS AGENCY - Westminster,FOOD STANDARDS AGENCY - Westminster,2018-04-09,EXP - PURCHASE OF GOODS/SERVICES - SUBSISTENCE,CHIEF EXECUTIVE & PRIVATE OFFICE,REDFERN TRAVEL LTD,1011705646,119.36,Travel Expenses Week 12,BD1 5HQ,ADMIN
FOOD STANDARDS AGENCY - Westminster,FOOD STANDARDS AGENCY - Westminster,2018-04-25,EXP - PURCHASE OF GOODS/SERVICES - SUBSISTENCE,FOOD ADDITIVES,REDFERN TRAVEL LTD,1011705862,119.3,Travel Expenses Week 15,BD1 5HQ,ADMIN
FOOD STANDARDS AGENCY - Westminster,FOOD STANDARDS AGENCY - Westminster,2018-04-25,EXP - PURCHASE OF GOODS/SERVICES -  FOREIGN AIR TRAVEL,REGULATORY & INTERNATIONAL,REDFERN TRAVEL LTD,1011705862,119,Travel Expenses Week 15,BD1 5HQ,ADMIN
FOOD STANDARDS AGENCY - Westminster,FOOD STANDARDS AGENCY - Westminster,2018-04-25,EXP - PURCHASE OF GOODS/SERVICES - SUBSISTENCE,IT SERVICE DELIVERY,REDFERN TRAVEL LTD,1011705862,117.7,Travel Expenses Week 15,BD1 5HQ,ADMIN
FOOD STANDARDS AGENCY - Westminster,FOOD STANDARDS AGENCY - Westminster,2018-04-25,EXP - PURCHASE OF GOODS/SERVICES - AIR TRAVEL,"ANIMAL FEED, TSEs & ABPs",REDFERN TRAVEL LTD,1011705862,117,Travel Expenses Week 15,BD1 5HQ,ADMIN
FOOD STANDARDS AGENCY - Westminster,FOOD STANDARDS AGENCY - Westminster,2018-04-09,EXP - PURCHASE OF GOODS/SERVICES - RAIL TRAVEL,INPORT & EXPORTS TEAM,REDFERN TRAVEL LTD,1011705646,115.2,Travel Expenses Week 12,BD1 5HQ,ADMIN
FOOD STANDARDS AGENCY - Westminster,FOOD STANDARDS AGENCY - Westminster,2018-04-25,EXP - PURCHASE OF GOODS/SERVICES - RAIL TRAVEL,DIGITAL,REDFERN TRAVEL LTD,1011705862,113.1,Travel Expenses Week 15,BD1 5HQ,ADMIN
FOOD STANDARDS AGENCY - Westminster,FOOD STANDARDS AGENCY - Westminster,2018-04-09,EXP - PURCHASE OF GOODS/SERVICES - RAIL TRAVEL,REGULATING OUR FUTURE,REDFERN TRAVEL LTD,1011705646,111.5,Travel Expenses Week 12,BD1 5HQ,ADMIN
FOOD STANDARDS AGENCY - Westminster,FOOD STANDARDS AGENCY - Westminster,2018-04-25,EXP - PURCHASE OF GOODS/SERVICES - FOREIGN SUBSISTENCE,FOOD INCIDENTS AND RESILIENCE PROG,REDFERN TRAVEL LTD,1011705862,110.73,Travel Expenses Week 15,BD1 5HQ,PROGRAMME
FOOD STANDARDS AGENCY - Westminster,FOOD STANDARDS AGENCY - Westminster,2018-04-09,EXP - PURCHASE OF GOODS/SERVICES - TAXI SERVICES,ORGANISATIONAL DEVELOPMENT,REDFERN TRAVEL LTD,1011705646,109.59,Travel Expenses Week 12,BD1 5HQ,ADMIN
FOOD STANDARDS AGENCY - Westminster,FOOD STANDARDS AGENCY - Westminster,2018-04-25,EXP - PURCHASE OF GOODS/SERVICES - SUBSISTENCE,DIGITAL,REDFERN TRAVEL LTD,1011705862,109.35,Travel Expenses Week 15,BD1 5HQ,ADMIN
FOOD STANDARDS AGENCY - Westminster,FOOD STANDARDS AGENCY - Westminster,2018-04-25,EXP - PURCHASE OF GOODS/SERVICES - RAIL TRAVEL,FOOD CRIME UNIT PROG,REDFERN TRAVEL LTD,1011705862,108.6,Travel Expenses Week 15,BD1 5HQ,PROGRAMME
FOOD STANDARDS AGENCY - Westminster,FOOD STANDARDS AGENCY - Westminster,2018-04-09,EXP - PURCHASE OF GOODS/SERVICES - RAIL TRAVEL,East 2,REDFERN TRAVEL LTD,1011705646,105,Travel Expenses Week 12,BD1 5HQ,PROGRAMME
FOOD STANDARDS AGENCY - Westminster,FOOD STANDARDS AGENCY - Westminster,2018-04-25,EXP - PURCHASE OF GOODS/SERVICES - AIR TRAVEL,DIGITAL,REDFERN TRAVEL LTD,1011705862,103.5,Travel Expenses Week 15,BD1 5HQ,ADMIN
FOOD STANDARDS AGENCY - Westminster,FOOD STANDARDS AGENCY - Westminster,2018-04-09,EXP - PURCHASE OF GOODS/SERVICES - SUBSISTENCE,CHEMICAL RISK ASSESSMENT UNIT,REDFERN TRAVEL LTD,1011705646,100.6,Travel Expenses Week 12,BD1 5HQ,ADMIN
FOOD STANDARDS AGENCY - Westminster,FOOD STANDARDS AGENCY - Westminster,2018-04-25,EXP - PURCHASE OF GOODS/SERVICES - OTHER TRAVEL,ORGANISATIONAL DEVELOPMENT,REDFERN TRAVEL LTD,1011705862,99.98,Travel Expenses Week 15,BD1 5HQ,ADMIN
FOOD STANDARDS AGENCY - Westminster,FOOD STANDARDS AGENCY - Westminster,2018-04-09,EXP - PURCHASE OF GOODS/SERVICES - RAIL TRAVEL,SECURITY & ESTATES,REDFERN TRAVEL LTD,1011705646,95,Travel Expenses Week 12,BD1 5HQ,ADMIN
FOOD STANDARDS AGENCY - Westminster,FOOD STANDARDS AGENCY - Westminster,2018-04-09,EXP - PURCHASE OF GOODS/SERVICES -  FOREIGN AIR TRAVEL,SCIENTIFIC METHODS AND LABORATORY POLICY,REDFERN TRAVEL LTD,1011705646,93,Travel Expenses Week 12,BD1 5HQ,ADMIN
FOOD STANDARDS AGENCY - Westminster,FOOD STANDARDS AGENCY - Westminster,2018-04-25,EXP - PURCHASE OF GOODS/SERVICES - TAXI SERVICES,FOODBORNE DISEASE CONTROL,REDFERN TRAVEL LTD,1011705862,92.39,Travel Expenses Week 15,BD1 5HQ,ADMIN
FOOD STANDARDS AGENCY - Westminster,FOOD STANDARDS AGENCY - Westminster,2018-04-09,EXP - PURCHASE OF GOODS/SERVICES - RAIL TRAVEL,FOOD CRIME UNIT PROG,REDFERN TRAVEL LTD,1011705646,91.6,Travel Expenses Week 12,BD1 5HQ,PROGRAMME
FOOD STANDARDS AGENCY - Westminster,FOOD STANDARDS AGENCY - Westminster,2018-04-09,EXP - PURCHASE OF GOODS/SERVICES -  FOREIGN AIR TRAVEL,FOOD ADDITIVES,REDFERN TRAVEL LTD,1011705646,88,Travel Expenses Week 12,BD1 5HQ,ADMIN
FOOD STANDARDS AGENCY - Westminster,FOOD STANDARDS AGENCY - Westminster,2018-04-09,EXP - PURCHASE OF GOODS/SERVICES - SUBSISTENCE,IT SERVICE DELIVERY,REDFERN TRAVEL LTD,1011705646,86.46,Travel Expenses Week 12,BD1 5HQ,ADMIN
FOOD STANDARDS AGENCY - Westminster,FOOD STANDARDS AGENCY - Westminster,2018-04-09,EXP - PURCHASE OF GOODS/SERVICES - RAIL TRAVEL,PROCUREMENT,REDFERN TRAVEL LTD,1011705646,86,Travel Expenses Week 12,BD1 5HQ,ADMIN
FOOD STANDARDS AGENCY - Westminster,FOOD STANDARDS AGENCY - Westminster,2018-04-25,EXP - PURCHASE OF GOODS/SERVICES - RAIL TRAVEL,"AGRICULTURAL, PROCESS & ENVIRONMENTAL CONTAMINANTS",REDFERN TRAVEL LTD,1011705862,84.2,Travel Expenses Week 15,BD1 5HQ,ADMIN
FOOD STANDARDS AGENCY - Westminster,FOOD STANDARDS AGENCY - Westminster,2018-04-25,EXP - PURCHASE OF GOODS/SERVICES - RAIL TRAVEL,ANALYSIS & RESEARCH BRANCH,REDFERN TRAVEL LTD,1011705862,83,Travel Expenses Week 15,BD1 5HQ,ADMIN
FOOD STANDARDS AGENCY - Westminster,FOOD STANDARDS AGENCY - Westminster,2018-04-09,EXP - PURCHASE OF GOODS/SERVICES - RAIL TRAVEL,Wales and West 1 (Wales),REDFERN TRAVEL LTD,1011705646,82.9,Travel Expenses Week 12,BD1 5HQ,PROGRAMME
FOOD STANDARDS AGENCY - Westminster,FOOD STANDARDS AGENCY - Westminster,2018-04-09,EXP - PURCHASE OF GOODS/SERVICES - RAIL TRAVEL,East 3,REDFERN TRAVEL LTD,1011705646,81.2,Travel Expenses Week 12,BD1 5HQ,PROGRAMME
FOOD STANDARDS AGENCY - Westminster,FOOD STANDARDS AGENCY - Westminster,2018-04-09,EXP - PURCHASE OF GOODS/SERVICES - RAIL TRAVEL,Wales and West 3 ,REDFERN TRAVEL LTD,1011705646,79.6,Travel Expenses Week 12,BD1 5HQ,PROGRAMME
FOOD STANDARDS AGENCY - Westminster,FOOD STANDARDS AGENCY - Westminster,2018-04-09,EXP - PURCHASE OF GOODS/SERVICES - RAIL TRAVEL,INTERNAL AUDIT,REDFERN TRAVEL LTD,1011705646,78.9,Travel Expenses Week 12,BD1 5HQ,ADMIN
FOOD STANDARDS AGENCY - Westminster,FOOD STANDARDS AGENCY - Westminster,2018-04-09,EXP - PURCHASE OF GOODS/SERVICES - RAIL TRAVEL,CHEMICAL RISK ASSESSMENT UNIT,REDFERN TRAVEL LTD,1011705646,76.9,Travel Expenses Week 12,BD1 5HQ,ADMIN
FOOD STANDARDS AGENCY - Westminster,FOOD STANDARDS AGENCY - Westminster,2018-04-25,EXP - PURCHASE OF GOODS/SERVICES - SUBSISTENCE,INTERNAL AUDIT,REDFERN TRAVEL LTD,1011705862,73.59,Travel Expenses Week 15,BD1 5HQ,ADMIN
FOOD STANDARDS AGENCY - Westminster,FOOD STANDARDS AGENCY - Westminster,2018-04-09,EXP - PURCHASE OF GOODS/SERVICES - RAIL TRAVEL,FOOD CRIME UNIT ADMIN,REDFERN TRAVEL LTD,1011705646,72.8,Travel Expenses Week 12,BD1 5HQ,ADMIN
FOOD STANDARDS AGENCY - Westminster,FOOD STANDARDS AGENCY - Westminster,2018-04-09,EXP - PURCHASE OF GOODS/SERVICES - OTHER TRAVEL,OPERATIONAL DELIVERY,REDFERN TRAVEL LTD,1011705646,70.99,Travel Expenses Week 12,BD1 5HQ,PROGRAMME
FOOD STANDARDS AGENCY - Westminster,FOOD STANDARDS AGENCY - Westminster,2018-04-25,EXP - PURCHASE OF GOODS/SERVICES - AIR TRAVEL,OPERATIONS ASSURANCE DIVISION (PROGRAMME),REDFERN TRAVEL LTD,1011705862,70.71,Travel Expenses Week 15,BD1 5HQ,PROGRAMME
FOOD STANDARDS AGENCY - Westminster,FOOD STANDARDS AGENCY - Westminster,2018-04-09,EXP - PURCHASE OF GOODS/SERVICES -  FOREIGN AIR TRAVEL,MEAT HYGIENE POLICY,REDFERN TRAVEL LTD,1011705646,69.06,Travel Expenses Week 12,BD1 5HQ,ADMIN
FOOD STANDARDS AGENCY - Westminster,FOOD STANDARDS AGENCY - Westminster,2018-04-25,EXP - PURCHASE OF GOODS/SERVICES - RAIL TRAVEL,FOOD CRIME UNIT ADMIN,REDFERN TRAVEL LTD,1011705862,68.5,Travel Expenses Week 15,BD1 5HQ,ADMIN
FOOD STANDARDS AGENCY - Westminster,FOOD STANDARDS AGENCY - Westminster,2018-04-09,EXP - PURCHASE OF GOODS/SERVICES - RAIL TRAVEL,Wales and West 2 (England),REDFERN TRAVEL LTD,1011705646,63.5,Travel Expenses Week 12,BD1 5HQ,PROGRAMME
FOOD STANDARDS AGENCY - Westminster,FOOD STANDARDS AGENCY - Westminster,2018-04-25,EXP - PURCHASE OF GOODS/SERVICES - RAIL TRAVEL,Wales and West 3 ,REDFERN TRAVEL LTD,1011705862,59.7,Travel Expenses Week 15,BD1 5HQ,PROGRAMME
FOOD STANDARDS AGENCY - Westminster,FOOD STANDARDS AGENCY - Westminster,2018-04-25,EXP - PURCHASE OF GOODS/SERVICES - SUBSISTENCE,Wales and West 1 (Wales),REDFERN TRAVEL LTD,1011705862,58.55,Travel Expenses Week 15,BD1 5HQ,PROGRAMME
FOOD STANDARDS AGENCY - Westminster,FOOD STANDARDS AGENCY - Westminster,2018-04-25,EXP - PURCHASE OF GOODS/SERVICES - RAIL TRAVEL,Wales and West 2 (England),REDFERN TRAVEL LTD,1011705862,57.95,Travel Expenses Week 15,BD1 5HQ,PROGRAMME
FOOD STANDARDS AGENCY - Westminster,FOOD STANDARDS AGENCY - Westminster,2018-04-25,EXP - PURCHASE OF GOODS/SERVICES - SUBSISTENCE,East 3,REDFERN TRAVEL LTD,1011705862,55.1,Travel Expenses Week 15,BD1 5HQ,PROGRAMME
FOOD STANDARDS AGENCY - Westminster,FOOD STANDARDS AGENCY - Westminster,2018-04-09,EXP - PURCHASE OF GOODS/SERVICES - SUBSISTENCE,North 4,REDFERN TRAVEL LTD,1011705646,54.85,Travel Expenses Week 12,BD1 5HQ,PROGRAMME
FOOD STANDARDS AGENCY - Westminster,FOOD STANDARDS AGENCY - Westminster,2018-04-25,EXP - PURCHASE OF GOODS/SERVICES - SUBSISTENCE,North 1,REDFERN TRAVEL LTD,1011705862,54.85,Travel Expenses Week 15,BD1 5HQ,PROGRAMME
FOOD STANDARDS AGENCY - Westminster,FOOD STANDARDS AGENCY - Westminster,2018-04-25,EXP - PURCHASE OF GOODS/SERVICES - TAXI SERVICES,INTERNAL AUDIT,REDFERN TRAVEL LTD,1011705862,54.72,Travel Expenses Week 15,BD1 5HQ,ADMIN
FOOD STANDARDS AGENCY - Westminster,FOOD STANDARDS AGENCY - Westminster,2018-04-25,EXP - PURCHASE OF GOODS/SERVICES - SUBSISTENCE,Wales and West 2 (England),REDFERN TRAVEL LTD,1011705862,54.55,Travel Expenses Week 15,BD1 5HQ,PROGRAMME
FOOD STANDARDS AGENCY - Westminster,FOOD STANDARDS AGENCY - Westminster,2018-04-09,EXP - PURCHASE OF GOODS/SERVICES - TAXI SERVICES,"ANIMAL FEED, TSEs & ABPs",REDFERN TRAVEL LTD,1011705646,54.36,Travel Expenses Week 12,BD1 5HQ,ADMIN
FOOD STANDARDS AGENCY - Westminster,FOOD STANDARDS AGENCY - Westminster,2018-04-25,EXP - PURCHASE OF GOODS/SERVICES - SUBSISTENCE,East 1,REDFERN TRAVEL LTD,1011705862,52.33,Travel Expenses Week 15,BD1 5HQ,PROGRAMME
FOOD STANDARDS AGENCY - Westminster,FOOD STANDARDS AGENCY - Westminster,2018-04-09,EXP - PURCHASE OF GOODS/SERVICES - RAIL TRAVEL,East 4,REDFERN TRAVEL LTD,1011705646,49.8,Travel Expenses Week 12,BD1 5HQ,PROGRAMME
FOOD STANDARDS AGENCY - Westminster,FOOD STANDARDS AGENCY - Westminster,2018-04-25,EXP - PURCHASE OF GOODS/SERVICES - RAIL TRAVEL,FOOD ADDITIVES,REDFERN TRAVEL LTD,1011705862,48.5,Travel Expenses Week 15,BD1 5HQ,ADMIN
FOOD STANDARDS AGENCY - Westminster,FOOD STANDARDS AGENCY - Westminster,2018-04-09,EXP - PURCHASE OF GOODS/SERVICES - SUBSISTENCE,Wales and West 2 (Wales),REDFERN TRAVEL LTD,1011705646,47.58,Travel Expenses Week 12,BD1 5HQ,PROGRAMME
FOOD STANDARDS AGENCY - Westminster,FOOD STANDARDS AGENCY - Westminster,2018-04-09,EXP - PURCHASE OF GOODS/SERVICES - OTHER TRAVEL,ORGANISATIONAL DEVELOPMENT,REDFERN TRAVEL LTD,1011705646,46.79,Travel Expenses Week 12,BD1 5HQ,ADMIN
FOOD STANDARDS AGENCY - Westminster,FOOD STANDARDS AGENCY - Westminster,2018-04-25,EXP - PURCHASE OF GOODS/SERVICES - TAXI SERVICES,INPORT & EXPORTS TEAM,REDFERN TRAVEL LTD,1011705862,40.9,Travel Expenses Week 15,BD1 5HQ,ADMIN
FOOD STANDARDS AGENCY - Westminster,FOOD STANDARDS AGENCY - Westminster,2018-04-25,EXP - PURCHASE OF GOODS/SERVICES - RAIL TRAVEL,North 2,REDFERN TRAVEL LTD,1011705862,39.2,Travel Expenses Week 15,BD1 5HQ,PROGRAMME
FOOD STANDARDS AGENCY - Westminster,FOOD STANDARDS AGENCY - Westminster,2018-04-09,EXP - PURCHASE OF GOODS/SERVICES - RAIL TRAVEL,North 2,REDFERN TRAVEL LTD,1011705646,37.7,Travel Expenses Week 12,BD1 5HQ,PROGRAMME
FOOD STANDARDS AGENCY - Westminster,FOOD STANDARDS AGENCY - Westminster,2018-04-25,EXP - PURCHASE OF GOODS/SERVICES -  FOREIGN AIR TRAVEL,FOOD CRIME UNIT ADMIN,REDFERN TRAVEL LTD,1011705862,35.45,Travel Expenses Week 15,BD1 5HQ,ADMIN
FOOD STANDARDS AGENCY - Westminster,FOOD STANDARDS AGENCY - Westminster,2018-04-25,EXP - PURCHASE OF GOODS/SERVICES - RAIL TRAVEL,ALLERGY & INTOLERANCE,REDFERN TRAVEL LTD,1011705862,32.7,Travel Expenses Week 15,BD1 5HQ,ADMIN
FOOD STANDARDS AGENCY - Westminster,FOOD STANDARDS AGENCY - Westminster,2018-04-25,EXP - PURCHASE OF GOODS/SERVICES - TAXI SERVICES,"RADIOLOGICAL, NOVEL FOOD & PROCESSES",REDFERN TRAVEL LTD,1011705862,26.2,Travel Expenses Week 15,BD1 5HQ,ADMIN
FOOD STANDARDS AGENCY - Westminster,FOOD STANDARDS AGENCY - Westminster,2018-04-25,EXP - PURCHASE OF GOODS/SERVICES -  FOREIGN AIR TRAVEL,FOOD ADDITIVES,REDFERN TRAVEL LTD,1011705862,22.15,Travel Expenses Week 15,BD1 5HQ,ADMIN
FOOD STANDARDS AGENCY - Westminster,FOOD STANDARDS AGENCY - Westminster,2018-04-09,EXP - PURCHASE OF GOODS/SERVICES - FOREIGN RAIL TRAVEL,SCIENTIFIC METHODS AND LABORATORY POLICY,REDFERN TRAVEL LTD,1011705646,19.23,Travel Expenses Week 12,BD1 5HQ,ADMIN
FOOD STANDARDS AGENCY - Westminster,FOOD STANDARDS AGENCY - Westminster,2018-04-09,EXP - PURCHASE OF GOODS/SERVICES - OTHER TRAVEL,NORTHERN IRELAND,REDFERN TRAVEL LTD,1011705646,17.15,Travel Expenses Week 12,BD1 5HQ,ADMIN
FOOD STANDARDS AGENCY - Westminster,FOOD STANDARDS AGENCY - Westminster,2018-04-25,EXP - PURCHASE OF GOODS/SERVICES - OTHER TRAVEL,ALLERGY & INTOLERANCE,REDFERN TRAVEL LTD,1011705862,16,Travel Expenses Week 15,BD1 5HQ,ADMIN
FOOD STANDARDS AGENCY - Westminster,FOOD STANDARDS AGENCY - Westminster,2018-04-25,EXP - PURCHASE OF GOODS/SERVICES - RAIL TRAVEL,RESILIENCE ADMIN,REDFERN TRAVEL LTD,1011705862,14.4,Travel Expenses Week 15,BD1 5HQ,ADMIN
FOOD STANDARDS AGENCY - Westminster,FOOD STANDARDS AGENCY - Westminster,2018-04-25,EXP - PURCHASE OF GOODS/SERVICES - OTHER TRAVEL,ANALYSIS & RESEARCH BRANCH,REDFERN TRAVEL LTD,1011705862,12.7,Travel Expenses Week 15,BD1 5HQ,ADMIN
FOOD STANDARDS AGENCY - Westminster,FOOD STANDARDS AGENCY - Westminster,2018-04-25,EXP - PURCHASE OF GOODS/SERVICES - TAXI SERVICES,REGULATORY DELIVERY,REDFERN TRAVEL LTD,1011705862,7.14,Travel Expenses Week 15,BD1 5HQ,ADMIN
FOOD STANDARDS AGENCY - Westminster,FOOD STANDARDS AGENCY - Westminster,2018-04-09,EXP - PURCHASE OF GOODS/SERVICES -  FOREIGN AIR TRAVEL,"ANIMAL FEED, TSEs & ABPs",REDFERN TRAVEL LTD,1011705646,2.92,Travel Expenses Week 12,BD1 5HQ,ADMIN
FOOD STANDARDS AGENCY - Westminster,FOOD STANDARDS AGENCY - Westminster,2018-04-25,EXP - PURCHASE OF GOODS/SERVICES - FOREIGN SUBSISTENCE,FOOD ADDITIVES,REDFERN TRAVEL LTD,1011705862,2.33,Travel Expenses Week 15,BD1 5HQ,ADMIN
FOOD STANDARDS AGENCY - Westminster,FOOD STANDARDS AGENCY - Westminster,2018-04-09,EXP - PURCHASE OF GOODS/SERVICES - FOREIGN SUBSISTENCE,SCIENTIFIC METHODS AND LABORATORY POLICY,REDFERN TRAVEL LTD,1011705646,1.2,Travel Expenses Week 12,BD1 5HQ,ADMIN
FOOD STANDARDS AGENCY - Westminster,FOOD STANDARDS AGENCY - Westminster,2018-04-09,EXP - PURCHASE OF GOODS/SERVICES - FOREIGN SUBSISTENCE,REGULATORY DELIVERY,REDFERN TRAVEL LTD,1011705646,0.6,Travel Expenses Week 12,BD1 5HQ,ADMIN
FOOD STANDARDS AGENCY - Westminster,FOOD STANDARDS AGENCY - Westminster,2018-04-09,EXP - PURCHASE OF GOODS/SERVICES - FOREIGN SUBSISTENCE,"RADIOLOGICAL, NOVEL FOOD & PROCESSES",REDFERN TRAVEL LTD,1011705646,0.6,Travel Expenses Week 12,BD1 5HQ,ADMIN
FOOD STANDARDS AGENCY - Westminster,FOOD STANDARDS AGENCY - Westminster,2018-04-09,EXP - PURCHASE OF GOODS/SERVICES - FOREIGN SUBSISTENCE,MEAT HYGIENE POLICY,REDFERN TRAVEL LTD,1011705646,0.6,Travel Expenses Week 12,BD1 5HQ,ADMIN
FOOD STANDARDS AGENCY - Westminster,FOOD STANDARDS AGENCY - Westminster,2018-04-09,EXP - PURCHASE OF GOODS/SERVICES - SUBSISTENCE,FINANCE BRANCH,REDFERN TRAVEL LTD,1011705646,0.6,Travel Expenses Week 12,BD1 5HQ,ADMIN
FOOD STANDARDS AGENCY - Westminster,FOOD STANDARDS AGENCY - Westminster,2018-04-09,EXP - PURCHASE OF GOODS/SERVICES - SUBSISTENCE,East 1,REDFERN TRAVEL LTD,1011705646,0.6,Travel Expenses Week 12,BD1 5HQ,PROGRAMME
FOOD STANDARDS AGENCY - Westminster,FOOD STANDARDS AGENCY - Westminster,2018-04-09,EXP - PURCHASE OF GOODS/SERVICES - OTHER TRAVEL,ANALYSIS & RESEARCH BRANCH,REDFERN TRAVEL LTD,1011705646,-21.6,Travel Expenses Week 12,BD1 5HQ,ADMIN
FOOD STANDARDS AGENCY - Westminster,FOOD STANDARDS AGENCY - Westminster,2018-04-25,EXP - PURCHASE OF GOODS/SERVICES - RAIL TRAVEL,CORPORATE SUPPORT UNIT,REDFERN TRAVEL LTD,1011705862,-45,Travel Expenses Week 15,BD1 5HQ,ADMIN
FOOD STANDARDS AGENCY - Westminster,FOOD STANDARDS AGENCY - Westminster,2018-04-09,EXP - PURCHASE OF GOODS/SERVICES - SUBSISTENCE,North 1,REDFERN TRAVEL LTD,1011705646,-46,Travel Expenses Week 12,BD1 5HQ,PROGRAMME
FOOD STANDARDS AGENCY - Westminster,FOOD STANDARDS AGENCY - Westminster,2018-04-09,EXP - PURCHASE OF GOODS/SERVICES - RAIL TRAVEL,Wales and West 4 ,REDFERN TRAVEL LTD,1011705646,-250.3,Travel Expenses Week 12,BD1 5HQ,PROGRAMME
FOOD STANDARDS AGENCY - Westminster,FOOD STANDARDS AGENCY - Westminster,2018-04-19,EXP - PURCHASE OF GOODS/SERVICES -OTHER PROF SERV - PAYMENTS TO PAYROLL PROVIDER,FINANCE BRANCH,MIDLAND SOFTWARE LTD,1011705808,-2811.15,CREDIT NOTE AGAINST INVOICE SIN024617 AND SIN018628,NG11 6LL,ADMIN
FOOD STANDARDS AGENCY - Westminster,FOOD STANDARDS AGENCY - Westminster,2018-04-19,EXP - PURCHASE OF GOODS/SERVICES -OTHER PROF SERV - PAYMENTS TO PAYROLL PROVIDER,"EMPLOYEE RELATIONS, SYSTEMS & DATA",MIDLAND SOFTWARE LTD,1011705808,-2811.15,CREDIT NOTE AGAINST INVOICE SIN024617 AND SIN018628,NG11 6LL,ADMIN
FOOD STANDARDS AGENCY - Westminster,FOOD STANDARDS AGENCY - Westminster,2018-04-25,EXP - PURCHASE OF GOODS/SERVICES - AIR TRAVEL,"PLANNING, PERFORMANCE & CHANGE",REDFERN TRAVEL LTD,1011705862,-3262.99,Travel Expenses Week 15,BD1 5HQ,ADMIN
FOOD STANDARDS AGENCY - Westminster,FOOD STANDARDS AGENCY - Westminster,2018-04-19,EXP - PURCHASE OF GOODS/SERVICES -OTHER PROF SERV - PAYMENTS TO PAYROLL PROVIDER,FINANCE BRANCH,MIDLAND SOFTWARE LTD,1011705808,-14055.73,I-Trent and Interface Rental for period July to September 2016,NG11 6LL,ADMIN
FOOD STANDARDS AGENCY - Westminster,FOOD STANDARDS AGENCY - Westminster,2018-04-19,EXP - PURCHASE OF GOODS/SERVICES -OTHER PROF SERV - PAYMENTS TO PAYROLL PROVIDER,"EMPLOYEE RELATIONS, SYSTEMS & DATA",MIDLAND SOFTWARE LTD,1011705808,-14055.73,I-Trent and Interface Rental for period July to September 2016,NG11 6LL,ADMIN
